lending/lending_fUSD_20250224
["ID","MTS","AMOUNT","RATE_DAILY","PERIOD"]
[354323195,1740409832948,-3262.362,0.00016921,2]
[354323197,1740409832958,-181.682,0.00016921,2]
[354323199,1740409832970,-7500.0,0.00017052,2]
[354323201,1740409832979,-983.37,0.00017095,2]
[354323203,1740409832988,-155.58,0.00017152,2]
[354323205,1740409832998,-264.08438907,0.0001716,2]
[354323206,1740409833007,-500.0,0.00017174,2]
[354323209,1740409833016,-409.27514692,0.0001719,2]
[354323210,1740409833026,-500.0,0.00017195,2]
[354323213,1740409833036,-255.4928912,0.000172,2]
[354323214,1740409833047,-426.38,0.00017207,2]
[354323217,1740409833057,-1298.62856,0.00017259,2]
[354323219,1740409833067,-586.06,0.0001726,7]
[354323220,1740409833077,-1818.98683419,0.0001726,2]
[354323223,1740409833089,-181.01316581,0.0001726,2]
[354323225,1740409833099,-200.0,0.0001726,2]
[354323227,1740409833108,-694.94178609,0.00017319,2]
[354323231,1740409833141,-704.67821391,0.00017319,2]
[354323233,1740409833150,-222.69892283,0.00017324,2]
[354323235,1740409833162,-643.78817717,0.00017324,2]
[354323237,1740409833172,-155.58,0.00017384,2]
[354323239,1740409833181,-1399.62,0.00017442,2]
[354323241,1740409833190,-161.76212,0.00017454,2]
[354323243,1740409833200,-175.004175,0.00017454,2]
[354323245,1740409833209,-174.476596,0.00017454,2]
[354323247,1740409833221,-172.45676,0.00017454,2]
[354323249,1740409833231,-1000.0,0.00017479,2]
[354323251,1740409833241,-1399.62,0.00017565,2]
[354323253,1740409833251,-500.0,0.00017573,2]
[354323255,1740409833260,-500.0,0.00017573,2]
[354323257,1740409833270,-1709.69217185,0.000176,2]
[354323259,1740409833282,-290.30782815,0.000176,2]
[354323261,1740409833291,-549.69217185,0.000176,2]
[354323263,1740409833302,-599.81428692,0.000176,2]
[354323266,1740409833314,-454.9536,0.000176,2]
[354323268,1740409833325,-395.53994123,0.000176,2]
[354323270,1740409833336,-741.99645877,0.000176,2]
[354323397,1740409838147,-996.44488998,0.000176,2]
[354323398,1740409838159,-261.55865125,0.000176,2]
[354323399,1740409838168,-81.20838468,0.000176,2]
[354323400,1740409838179,-528.53759548,0.000176,2]
[354323401,1740409838190,-442.23919411,0.000176,2]
[354323402,1740409838214,-948.01482573,0.000176,2]
[354323403,1740409838223,-2000.0,0.000176,2]
[354323404,1740409838233,-2007.3813,0.000176,2]
[354323405,1740409838242,-155.58,0.00017617,2]
[354323407,1740409838252,-563.55273427,0.00017667,2]
[354323409,1740409838263,-568.776,0.00017667,2]
[354323411,1740409838275,-867.67126573,0.00017667,2]
[354323413,1740409838284,-349.54872727,0.0001767,2]
[354323416,1740409838299,-266.98,0.0001767,2]
[354323418,1740409838311,-33.47127273,0.0001767,2]
[354323420,1740409838322,-1399.62,0.00017688,2]
[354323423,1740409838332,-1000.0,0.00017722,2]
[354323424,1740409838341,-1399.62,0.00017811,2]
[354323427,1740409838355,-2000.0,0.00017834,2]
[354323429,1740409838365,-151.0,0.00017835,2]
[354323431,1740409838374,-299.825608,0.00017835,2]
[354323433,1740409838384,-155.58,0.0001785,2]
[354323435,1740409838394,-207.24359026,0.000179,2]
[354323437,1740409838404,-1399.62,0.00017934,2]
[354323439,1740409838414,-500.0,0.00017961,2]
[354323441,1740409838424,-931.2791915,0.00018,19]
[354323443,1740409838434,-237.887057,0.00018,8]
[354323445,1740409838444,-200.0,0.00018082,2]
[354323447,1740409838459,-1243.77,0.00018214,2]
[354323448,1740409838471,-1298.62856,0.0001825,2]
[354323449,1740409838491,-400.0,0.0001827,2]
[354323450,1740409838501,-2000.0,0.00018299,2]
[354323451,1740409838510,-161.76212,0.00018327,2]
[354323452,1740409838520,-174.476596,0.00018327,2]
[354323453,1740409838530,-502.0,0.00018329,2]
[354323454,1740409838540,-833.655249,0.00018338,2]
[354323455,1740409838550,-279.0,0.00018509,2]
[354323456,1740409838560,-154.65,0.000186,2]
[354323457,1740409838570,-154.65,0.000186,2]
[354323458,1740409838580,-1290.17150502,0.00018724,2]
[354323459,1740409838589,-580.3789917,0.00018743,2]
[354323460,1740409838617,-8994.94708147,0.00018743,2]
[354323461,1740409838627,-5000.0,0.00018743,2]
[354323462,1740409838637,-5000.0,0.00018743,2]
[354323463,1740409838646,-5000.0,0.00018743,2]
[354323464,1740409838656,-5000.0,0.00018743,2]
[354323465,1740409838666,-3528.37,0.00018819,2]
[354323466,1740409838676,-986.15,0.00018826,2]
[354323467,1740409838686,-900.0,0.00019,20]
[354323468,1740409838696,-350.0,0.00019,2]
[354323469,1740409838706,-2500.0,0.00019019,2]
[354323470,1740409838716,-426.38,0.00019119,2]
[354323471,1740409838725,-1000.0,0.00019178,7]
[354323472,1740409838735,-200.0,0.000192,2]
[354323473,1740409838744,-2082.02657801,0.00019239,2]
[354323474,1740409838755,-500.0,0.00019255,2]
[354323475,1740409838765,-150.99,0.00019339,2]
[354323476,1740409838775,-150.99,0.00019339,2]
[354323477,1740409838785,-999.99,0.00019339,2]
[354323478,1740409838794,-360.88,0.00019339,2]
[354323479,1740409838804,-299.99,0.00019339,7]
[354323480,1740409838814,-7294.25,0.00019339,2]
[354323481,1740409838824,-500.0,0.00019355,2]
[354323482,1740409838833,-1290.26,0.00019397,30]
[354323483,1740409838843,-13458.0,0.000194,2]
[354323484,1740409838853,-1000.0,0.00019422,2]
[354323485,1740409838863,-1000.0,0.00019452,7]
[354323486,1740409838873,-500.0,0.00019455,2]
[354323487,1740409838882,-500.0,0.000195,2]
[354323488,1740409838892,-500.0,0.000195,2]
[354323489,1740409838902,-516.26135796,0.000195,2]
[354323490,1740409838912,-500.0,0.000195,2]
[354323491,1740409838922,-508.63013228,0.000195,2]
[354323492,1740409838931,-504.54921289,0.000195,2]
[354323493,1740409838941,-507.95195526,0.000195,2]
[354323494,1740409838951,-1298.62856,0.000195,2]
[354323495,1740409838961,-500.0,0.00019555,2]
[354323496,1740409838980,-656.94,0.00019616,7]
[354323497,1740409838989,-656.94,0.00019616,7]
[354323498,1740409838999,-656.94,0.00019616,7]
[354323499,1740409839010,-656.94,0.00019616,7]
[354323500,1740409839021,-500.0,0.00019655,2]
[354323501,1740409839031,-1500.0,0.000197,2]
[354323502,1740409839041,-3000.0,0.000197,2]
[354323503,1740409839051,-1000.0,0.00019726,7]
[354323504,1740409839061,-500.0,0.00019755,2]
[354323505,1740409839070,-500.0,0.00019855,2]
[354323506,1740409839080,-2000.0,0.0001988,30]
[354323507,1740409839090,-656.94,0.0001989,7]
[354323508,1740409839100,-656.94,0.0001989,7]
[354323509,1740409839110,-500.0,0.00019955,2]
[354323510,1740409839120,-2000.0,0.00019999,2]
[354323511,1740409839130,-207.28618238,0.0002,2]
[354323512,1740409839140,-202.8759053,0.0002,30]
[354323513,1740409839149,-900.0,0.0002,21]
[354323514,1740409839160,-904.517763,0.0002,10]
[354323515,1740409839170,-150.0,0.0002,2]
[354323516,1740409839179,-1000.0,0.0002,7]
[354323517,1740409839189,-500.0,0.00020055,2]
[354323518,1740409839199,-500.0,0.00020155,2]
[354323519,1740409839208,-656.94,0.00020164,7]
[354323520,1740409839223,-656.94,0.00020164,7]
[354323521,1740409839234,-500.0,0.00020255,2]
[354323522,1740409839244,-1000.0,0.00020273,7]
[354323523,1740409839254,-500.0,0.00020355,2]
[354323524,1740409839264,-656.94,0.00020438,7]
[354323525,1740409839273,-656.94,0.00020438,7]
[354323526,1740409839284,-500.0,0.00020455,2]
[354323527,1740409839293,-1243.77,0.00020478,2]
[354323528,1740409839305,-300.0,0.000205,2]
[354323529,1740409839315,-500.0,0.00020546,2]
[354323530,1740409839326,-1000.0,0.00020547,7]
[354323531,1740409839336,-177.9,0.00020548,2]
[354323532,1740409839346,-150.0,0.00020548,2]
[354323533,1740409839356,-2102.0,0.00020551,2]
[354323534,1740409839367,-500.0,0.00020555,2]
[354323535,1740409839377,-999.0,0.00020559,2]
[354323536,1740409839387,-400.0,0.0002057,2]
[354323537,1740409839397,-1000.0,0.00020637,30]
[354323538,1740409839407,-150.1,0.00020637,30]
[354323539,1740409839418,-508.51,0.00020655,2]
[354323540,1740409839428,-201.65,0.0002069,2]
[354323541,1740409839438,-986.15,0.00020709,2]
[354323542,1740409839449,-656.94,0.00020712,7]
[354323543,1740409839460,-656.94,0.00020712,7]
[354323544,1740409839476,-1298.62857,0.0002075,2]
[354323545,1740409839486,-2102.0,0.00020763,2]
[354323546,1740409839497,-1000.0,0.00020821,7]
[354323547,1740409839506,-1424.0,0.00020865,2]
[354323548,1740409839517,-4031.0,0.00020865,2]
[354323549,1740409839527,-3921.0,0.00020865,2]
[354323550,1740409839538,-189.813,0.00020865,2]
[354323551,1740409839549,-1010.0,0.00020865,2]
[354323552,1740409839559,-2102.0,0.00020975,2]
[354323555,1740409839781,-656.94,0.00020986,7]
[354323556,1740409839792,-656.94,0.00020986,7]
[354323557,1740409839801,-167.1,0.00020986,120]
[354323558,1740409839811,-500.0,0.00021,120]
[354323559,1740409839820,-426.38,0.00021031,2]
[354323560,1740409839829,-509.70159972,0.00021094,2]
[354323561,1740409839839,-1000.0,0.00021095,7]
[354323562,1740409839848,-2131.85,0.000211,7]
[354323563,1740409839857,-2102.0,0.00021187,2]
[354323565,1740409839867,-751.66790602,0.00021187,2]
[354323566,1740409839876,-656.94,0.0002126,7]
[354323567,1740409839886,-656.94,0.0002126,7]
[354323568,1740409839895,-1000.0,0.00021364,2]
[354323569,1740409839905,-1000.0,0.00021369,7]
[354323570,1740409839915,-2102.0,0.00021399,2]
[354323572,1740409839924,-400.0,0.0002147,2]
[354323573,1740409839934,-150.0,0.00021494,2]
[354323574,1740409839944,-280.249,0.00021494,2]
[354323575,1740409839953,-250.0,0.00021494,2]
[354323576,1740409839963,-158.999,0.00021494,2]
[354323577,1740409839976,-206.119,0.00021494,2]
[354323578,1740409839985,-272.417,0.00021494,2]
[354323579,1740409839995,-170.665,0.00021494,2]
[354323580,1740409840004,-2028.0,0.00021494,2]
[354323581,1740409840014,-1279.302,0.00021494,2]
[354323582,1740409840023,-645.9,0.00021494,2]
[354323583,1740409840032,-265.188,0.00021494,2]
[354323584,1740409840041,-570.0,0.00021494,2]
[354323585,1740409840051,-790.0,0.00021494,2]
[354323586,1740409840060,-1280.103,0.00021494,2]
[354323587,1740409840070,-543.981,0.00021494,2]
[354323588,1740409840079,-907.0,0.00021494,2]
[354323589,1740409840089,-2157.42011744,0.00021515,2]
[354323590,1740409840098,-2082.02657799,0.00021524,2]
[354323591,1740409840108,-656.94,0.00021534,7]
[354323592,1740409840117,-656.94,0.00021534,7]
[354323593,1740409840127,-162.35,0.00021589,2]
[354323594,1740409840136,-2102.0,0.00021611,2]
[354323595,1740409840146,-1000.0,0.00021643,7]
[354323596,1740409840155,-656.94,0.00021808,7]
[354323597,1740409840165,-656.94,0.00021808,7]
[354323598,1740409840174,-2102.0,0.00021823,2]
[354323599,1740409840184,-655.74,0.00021869,2]
[354323600,1740409840193,-1000.0,0.00021917,7]
[354323601,1740409840202,-278.90663621,0.00021918,2]
[354323602,1740409840212,-167.1,0.00021973,120]
[354323603,1740409840226,-1290.26,0.00021981,30]
[354323604,1740409840236,-500.0,0.00022,120]
[354323605,1740409840246,-904.517763,0.00022,20]
[354323606,1740409840256,-1298.62856,0.00022,2]
[354323607,1740409840266,-656.94,0.00022082,7]
[354323608,1740409840276,-656.94,0.00022082,7]
[354323609,1740409840286,-151.0,0.00022082,7]
[354323610,1740409840295,-150.0,0.00022183,30]
[354323611,1740409840305,-150.0,0.00022183,30]
[354323612,1740409840315,-150.0,0.00022183,30]
[354323613,1740409840324,-150.0,0.00022183,30]
[354323614,1740409840334,-1389.67549015,0.00022183,30]
[354323615,1740409840343,-1000.0,0.00022191,7]
[354323616,1740409840352,-264.08438903,0.00022283,2]
[354323617,1740409840361,-656.94,0.00022356,7]
[354323618,1740409840370,-656.94,0.00022356,7]
[354323619,1740409840379,-1000.0,0.00022465,7]
[354323620,1740409840389,-1500.0,0.000225,2]
[354323621,1740409840398,-3000.0,0.000225,2]
[354323622,1740409840408,-986.15,0.00022592,2]
[354323623,1740409840417,-180.0,0.00022603,120]
[354323624,1740409840427,-1000.0,0.00022739,7]
[354323625,1740409840438,-1243.77,0.00022742,2]
[354323626,1740409840448,-999.0,0.00022751,4]
[354323627,1740409840460,-169.28325999,0.0002278,2]
[354323628,1740409840472,-880.74,0.0002288,2]
[354323629,1740409840482,-776.4,0.0002288,2]
[354323631,1740409840492,-776.4,0.0002288,2]
[354323632,1740409840501,-776.4,0.0002288,2]
[354323633,1740409840511,-512.72,0.00022883,2]
[354323634,1740409840521,-155.58,0.00022883,2]
[354323636,1740409840531,-426.38,0.00022942,2]
[354323638,1740409840541,-167.1,0.00022959,120]
[354323639,1740409840550,-500.0,0.00023,30]
[354323640,1740409840559,-500.0,0.00023,30]
[354323641,1740409840569,-500.0,0.00023,30]
[354323643,1740409840579,-500.0,0.00023,30]
[354323645,1740409840589,-500.0,0.00023,30]
[354323646,1740409840598,-500.0,0.00023,30]
[354323648,1740409840608,-500.0,0.00023,30]
[354323650,1740409840617,-501.21504427,0.00023,30]
[354323652,1740409840627,-979.87080354,0.00023,30]
[354323654,1740409840636,-501.56469334,0.00023,30]
[354323656,1740409840647,-503.10147927,0.00023,30]
[354323658,1740409840656,-506.28093044,0.00023,30]
[354323660,1740409840665,-500.0,0.00023,30]
[354323662,1740409840675,-500.0,0.00023,30]
[354323664,1740409840684,-200.0,0.00023,2]
[354323666,1740409840694,-1000.0,0.00023013,7]
[354323668,1740409840704,-500.0,0.00023135,2]
[354323670,1740409840713,-242.31445934,0.00023135,2]
[354323672,1740409840725,-1298.62856,0.0002325,2]
[354323674,1740409840735,-1000.0,0.00023287,7]
[354323676,1740409840744,-853.01623108,0.000233,2]
[354323678,1740409840754,-1000.0,0.00023306,2]
[354323680,1740409840763,-200.0,0.0002331,2]
[354323682,1740409840773,-200.0,0.0002331,2]
[354323684,1740409840783,-200.0,0.0002331,2]
[354323686,1740409840792,-200.0,0.0002331,2]
[354323688,1740409840802,-200.0,0.0002331,2]
[354323690,1740409840811,-200.0,0.0002331,2]
[354323692,1740409840820,-200.0,0.0002331,2]
[354323694,1740409840830,-200.0,0.0002331,2]
[354323696,1740409840839,-200.0,0.0002331,2]
[354323698,1740409840848,-201.0,0.0002331,2]
[354323700,1740409840858,-167.4,0.00023321,2]
[354323702,1740409840867,-289.74779715,0.00023561,7]
[354323704,1740409840876,-501.00736799,0.00023683,2]
[354323706,1740409840885,-3412.06492432,0.00023716,2]
[354323708,1740409840894,-1782.54,0.00023726,30]
[354323710,1740409840904,-1782.54,0.00023726,30]
[354323712,1740409840913,-1782.54,0.00023726,30]
[354323714,1740409840923,-1782.54,0.00023726,30]
[354323716,1740409840932,-1782.54,0.00023726,30]
[354323718,1740409840942,-1782.54,0.00023726,30]
[354323720,1740409840952,-1782.54,0.00023726,30]
[354323722,1740409840961,-1782.54,0.00023726,30]
[354323724,1740409840974,-1782.54,0.00023726,30]
[354323726,1740409840983,-1782.54,0.00023726,30]
[354323728,1740409840993,-1782.54,0.00023726,30]
[354323730,1740409841004,-1782.54,0.00023726,30]
[354323732,1740409841014,-1782.54,0.00023726,30]
[354323734,1740409841023,-1782.54,0.00023726,30]
[354323735,1740409841033,-1782.54,0.00023726,30]
[354323736,1740409841042,-1782.54,0.00023726,30]
[354323737,1740409841052,-1782.54,0.00023726,30]
[354323738,1740409841061,-1782.54,0.00023726,30]
[354323739,1740409841070,-1782.54,0.00023726,30]
[354323740,1740409841080,-1782.54,0.00023726,30]
[354323741,1740409841089,-1782.54,0.00023726,30]
[354323742,1740409841099,-1782.54,0.00023726,30]
[354323743,1740409841108,-1782.54,0.00023726,30]
[354323744,1740409841118,-1782.75068165,0.00023726,30]
[354323745,1740409841128,-440.19,0.00023791,2]
[354323746,1740409841137,-996.0,0.00023795,2]
[354323747,1740409841147,-776.07,0.00023795,2]
[354323748,1740409841157,-2082.02657799,0.00023808,2]
[354323749,1740409841166,-620.09,0.00023836,2]
[354323750,1740409841175,-1623.25,0.00023839,2]
[354323751,1740409841185,-880.44,0.00023839,2]
[354323752,1740409841194,-440.46,0.00023839,2]
[354323753,1740409841203,-164.491957,0.0002385,5]
[354323754,1740409841213,-853.01623108,0.00023855,2]
[354323755,1740409841224,-1424.0,0.00023865,2]
[354323756,1740409841234,-3921.0,0.00023865,2]
[354323757,1740409841243,-150.0,0.00023865,2]
[354323758,1740409841252,-1008.0,0.00023865,2]
[354323759,1740409841261,-261.65,0.000239,31]
[354323760,1740409841271,-261.65,0.000239,31]
[354323761,1740409841280,-261.65,0.000239,31]
[354323762,1740409841289,-261.65,0.000239,31]
[354323763,1740409841298,-261.65,0.000239,31]
[354323764,1740409841308,-261.65,0.000239,31]
[354323765,1740409841317,-261.65,0.000239,31]
[354323766,1740409841326,-261.65,0.000239,31]
[354323767,1740409841335,-261.65,0.000239,31]
[354323768,1740409841343,-261.65,0.000239,31]
[354323769,1740409841352,-261.65,0.000239,31]
[354323770,1740409841361,-261.65,0.000239,31]
[354323771,1740409841371,-261.65,0.000239,31]
[354323772,1740409841380,-261.65,0.000239,31]
[354323773,1740409841389,-261.65,0.000239,31]
[354323774,1740409841398,-261.65,0.000239,31]
[354323775,1740409841408,-902.66,0.00023932,2]
[354323776,1740409841417,-300.0,0.00023932,2]
[354323777,1740409841427,-302.08,0.00023932,2]
[354323778,1740409841436,-305.9,0.00023932,2]
[354323779,1740409841447,-986.16,0.00023932,2]
[354323780,1740409841456,-150.34,0.00023932,2]
[354323781,1740409841471,-300.36,0.00023932,2]
[354323782,1740409841480,-167.1,0.00023945,120]
[354323783,1740409841490,-400.0,0.0002397,2]
[354323784,1740409841500,-400.0,0.0002397,2]
[354323785,1740409841510,-1706.03246216,0.0002399,2]
[354323786,1740409841520,-500.0,0.00024,120]
[354323787,1740409841529,-904.517763,0.00024,40]
[354323788,1740409841542,-203.9,0.00024,2]
[354323789,1740409841551,-100000.00000099,0.00024,2]
[354323790,1740409841561,-1000.0,0.00024,9]
[354323791,1740409841570,-1000.0,0.00024,9]
[354323792,1740409841580,-1000.0,0.00024,9]
[354323793,1740409841589,-1000.0,0.00024,9]
[354323794,1740409841599,-1000.0,0.00024,9]
[354323795,1740409841608,-1000.0,0.00024,9]
[354323796,1740409841617,-1000.0,0.00024,9]
[354323797,1740409841627,-1000.0,0.00024,9]
[354323798,1740409841636,-1000.0,0.00024,9]
[354323799,1740409841645,-1004.69186982,0.00024,9]
[354323800,1740409841655,-1000.0,0.00024,9]
[354323801,1740409841664,-1000.0,0.00024,9]
[354323802,1740409841674,-1000.0,0.00024,9]
[354323803,1740409841683,-1000.0,0.00024,9]
[354323804,1740409841692,-1000.0,0.00024,9]
[354323805,1740409841701,-1000.0,0.00024,9]
[354323806,1740409841710,-1000.0,0.00024,9]
[354323807,1740409841722,-1000.0,0.00024,9]
[354323808,1740409841732,-1000.0,0.00024,9]
[354323809,1740409841742,-1000.0,0.00024,9]
[354323810,1740409841752,-853.01623108,0.00024078,2]
[354323811,1740409841762,-2473.28694003,0.00024102,2]
[354323812,1740409841771,-302.16779834,0.00024102,2]
[354323813,1740409841780,-248.86,0.00024202,2]
[354323814,1740409841789,-150.0,0.00024202,2]
[354323815,1740409841801,-150.0,0.00024202,2]
[354323816,1740409841810,-150.0,0.00024202,2]
[354323817,1740409841819,-150.0,0.00024202,2]
[354323818,1740409841828,-853.01623108,0.00024484,2]
[354323819,1740409841838,-150.0,0.00024494,2]
[354323820,1740409841847,-2028.0,0.00024494,2]
[354323821,1740409841856,-1275.0,0.00024494,2]
[354323822,1740409841865,-196.828,0.00024494,2]
[354323823,1740409841875,-784.0,0.00024494,2]
[354323824,1740409841884,-1267.0,0.00024494,2]
[354323825,1740409841893,-540.0,0.00024494,2]
[354323826,1740409841902,-907.0,0.00024494,2]
[354323827,1740409841911,-853.01623108,0.00024555,2]
[354323828,1740409841921,-1290.26,0.00024565,30]
[354323829,1740409841931,-1000.0,0.00024658,2]
[354323830,1740409841940,-150.0,0.00024658,2]
[354323831,1740409841949,-179.42708337,0.00024662,2]
[354323832,1740409841959,-853.01623108,0.00024752,2]
[354323833,1740409841969,-300.0,0.00024754,2]
[354323834,1740409841978,-150.0,0.00024754,2]
[354323835,1740409841987,-150.0,0.00024754,2]
[354323836,1740409841996,-150.0,0.00024754,2]
[354323837,1740409842006,-150.0,0.00024754,2]
[354323838,1740409842015,-150.0,0.00024754,2]
[354323839,1740409842025,-150.0,0.00024754,2]
[354323840,1740409842034,-783.47,0.00024762,2]
[354323841,1740409842044,-440.46,0.00024762,2]
[354323842,1740409842053,-440.46,0.00024762,2]
[354323843,1740409842062,-440.46,0.00024762,2]
[354323844,1740409842071,-233.42,0.00024764,2]
[354323845,1740409842080,-380.15,0.00024764,2]
[354323846,1740409842089,-440.46,0.00024764,2]
[354323847,1740409842099,-440.46,0.00024764,2]
[354323848,1740409842108,-381.53,0.00024764,2]
[354323849,1740409842118,-2853.0,0.000249,2]
[354323850,1740409842128,-167.1,0.00024932,120]
[354323851,1740409842137,-999.0,0.00024943,6]
[354323852,1740409842147,-400.0,0.0002497,2]
[354323853,1740409842156,-150.0,0.00025,2]
[354323854,1740409842166,-1243.77,0.00025006,2]
[354323855,1740409842175,-853.01623108,0.0002519,2]
[354323856,1740409842184,-3000.0,0.000252,2]
[354323857,1740409842194,-180.0,0.00025205,120]
[354323858,1740409842203,-280.0,0.000253,10]
[354323859,1740409842212,-1384.98732,0.00025348,120]
[354323860,1740409842223,-500.0,0.00025348,120]
[354323861,1740409842232,-150.0,0.00025557,5]
[354323862,1740409842242,-150.0,0.00025557,5]
[354323863,1740409842251,-190.47,0.00025641,2]
[354323864,1740409842261,-400.0,0.0002587,2]
[354323865,1740409842270,-400.0,0.0002587,2]
[354323866,1740409842279,-853.01623108,0.00025885,2]
[354323867,1740409842288,-150.0,0.00025895,2]
[354323868,1740409842297,-1725.62294929,0.00025895,2]
[354323869,1740409842307,-2910.22172082,0.000259,7]
[354323870,1740409842316,-167.1,0.00025918,120]
[354323871,1740409842325,-573.44332937,0.0002599,2]
[354323872,1740409842335,-853.01623108,0.0002599,2]
[354323873,1740409842344,-4433.65,0.00026,2]
[354323874,1740409842354,-1800.0,0.00026,27]
[354323875,1740409842363,-500.0,0.00026,120]
[354323876,1740409842372,-904.517763,0.00026,60]
[354323877,1740409842381,-2082.02657799,0.00026093,2]
[354323878,1740409842390,-174.83011904,0.00026164,5]
[354323879,1740409842400,-853.01623108,0.0002629,2]
[354323880,1740409842409,-201.65,0.0002629,2]
[354323881,1740409842418,-261.65,0.000263,31]
[354323882,1740409842428,-261.65,0.000263,31]
[354323883,1740409842437,-261.65,0.000263,31]
[354323884,1740409842447,-261.65,0.000263,31]
[354323885,1740409842460,-261.65,0.000263,31]
[354323886,1740409842472,-261.65,0.000263,31]
[354323887,1740409842481,-261.65,0.000263,31]
[354323888,1740409842491,-261.65,0.000263,31]
[354323889,1740409842502,-261.65,0.000263,31]
[354323890,1740409842511,-261.65,0.000263,31]
[354323891,1740409842521,-261.65,0.000263,31]
[354323892,1740409842533,-261.65,0.000263,31]
[354323893,1740409842543,-261.65,0.000263,31]
[354323894,1740409842552,-261.65,0.000263,31]
[354323895,1740409842561,-261.65,0.000263,31]
[354323896,1740409842571,-261.65,0.000263,31]
[354323897,1740409842580,-261.65,0.000263,31]
[354323898,1740409842590,-261.65,0.000263,31]
[354323899,1740409842600,-261.65,0.000263,31]
[354323900,1740409842610,-261.65,0.000263,31]
[354323901,1740409842620,-261.65,0.000263,31]
[354323902,1740409842629,-261.65,0.000263,31]
[354323904,1740409842639,-261.65,0.000263,31]
[354323905,1740409842649,-261.65,0.000263,31]
[354323906,1740409842658,-1239.14043361,0.00026325,50]
[354323907,1740409842668,-174.83011904,0.00026521,5]
[354323908,1740409842679,-177.17309116,0.000267,60]
[354323909,1740409842688,-1776.54,0.000267,14]
[354323910,1740409842697,-853.01623108,0.00026819,2]
[354323911,1740409842707,-1500.0,0.00026829,5]
[354323912,1740409842716,-1642.35121319,0.00026841,55]
[354323913,1740409842730,-1424.0,0.00026865,2]
[354323914,1740409842740,-3917.0,0.00026865,2]
[354323915,1740409842750,-150.0,0.00026865,2]
[354323916,1740409842759,-174.71633812,0.00026877,5]
[354323917,1740409842768,-174.83011904,0.00026877,5]
[354323918,1740409842778,-167.1,0.00026904,120]
[354323919,1740409842787,-213.69148689,0.00026973,2]
[354323920,1740409842797,-800.0,0.00026986,120]
[354323921,1740409842806,-416.41,0.00026986,120]
[354323922,1740409842815,-853.01623108,0.0002699,2]
[354323923,1740409842825,-739.39822623,0.0002699,2]
[354323924,1740409842836,-78104.30219649,0.00027,120]
[354323925,1740409842845,-250.0,0.00027,2]
[354323926,1740409842854,-1858.19990352,0.00027,14]
[354323927,1740409842864,-265.48497299,0.00027,30]
[354323928,1740409842874,-18368.47108161,0.00027,2]
[354323929,1740409842884,-5289.81363844,0.00027,7]
[354323930,1740409842893,-988.93257397,0.00027,2]
[354323931,1740409842903,-900.0,0.00027,28]
[354323932,1740409842912,-1000.0,0.00027,2]
[354323933,1740409842922,-2000.0,0.00027,2]
[354323934,1740409842931,-2123.499631,0.0002701,2]
[354323935,1740409842941,-167.58,0.00027084,2]